bitfinex-derivatives/quotes_SOLF0:USTF0_20260202
["timestamp","ask_amount","ask_price","bid_price","bid_amount"]
[1770035849517,47.80017051,103.08,103.02,8.7452]
[1770035850620,44.78346003,103.08,103.03,8.7443]
[1770035850818,47.80017051,103.1,103.03,40.6226914]
[1770035851422,3.01671048,103.09,103.03,40.6226914]
[1770035851624,3.01671048,103.09,103.03,49.3670914]
[1770035851921,47.80017051,103.09,103.03,49.3670914]
[1770035852422,44.78346003,103.09,103.03,49.3670914]
[1770035852922,44.78346003,103.09,103.01,8.7453]
[1770035852923,52.31922204,103.09,103.01,8.7453]
[1770035853116,44.78346003,103.08,103.0,40.6226914]
[1770035854223,53.52476003,103.07,103.0,40.6226914]
[1770035855425,53.52476003,103.07,103.0,49.3696914]
[1770035855923,44.78346003,103.07,103.02,8.7452]
[1770035856120,44.78346003,103.08,103.02,49.3678914]
[1770035856516,44.78346003,103.1,103.03,49.3670914]
[1770035856722,44.78346003,103.1,103.03,40.6226914]
[1770035858430,44.78346003,103.1,103.04,8.7436]
[1770035859623,53.52206003,103.1,103.03,49.3670914]
[1770035859827,53.52206003,103.1,103.01,136.0503]
[1770035859828,44.78346003,103.1,103.01,42.45872609]
[1770035860228,41.59859517,103.08,103.01,42.45872609]
[1770035860933,41.59859517,103.08,103.02,8.7452]
[1770035862224,7.53576201,103.07,102.99,42.45872609]
[1770035862427,41.59859517,103.06,102.99,42.45872609]
[1770035863327,41.59859517,103.06,103.0,8.7462]
[1770035864133,41.59859517,103.06,103.0,51.20492609]
[1770035864336,41.59859517,103.06,103.01,8.746]
[1770035867139,41.59859517,103.1,103.03,42.45872609]
[1770035868434,41.59859517,103.1,103.04,8.7434]
[1770035868634,41.59859517,103.1,103.01,430.15946473]
[1770035868835,42.36299948,103.08,103.01,430.15946473]
[1770035869432,42.36299948,103.08,103.02,8.7453]
[1770035869834,42.36299948,103.08,103.02,42.95946473]
[1770035871433,42.36299948,103.08,103.03,8.7442]
[1770035874541,42.36299948,103.08,103.04,8.7435]
[1770035875242,3.01461912,103.09,103.04,8.7435]
[1770035877641,45.3776186,103.09,103.04,8.7435]
[1770035879242,45.3776186,103.09,103.03,42.95946473]
[1770035879243,3.01461912,103.08,103.03,51.70366473]
[1770035879943,45.3776186,103.09,103.03,51.70366473]
[1770035880140,45.3776186,103.09,103.04,8.7433]
[1770035880340,42.36299948,103.09,103.04,42.95946473]
[1770035880541,42.36299948,103.09,103.04,51.70296473]
[1770035880740,45.3776186,103.08,103.02,42.95946473]
[1770035881247,45.3776186,103.1,103.03,42.95946473]
[1770035881446,45.3776186,103.1,103.03,45.97408385]
[1770035881848,45.3776186,103.1,103.03,42.95946473]
[1770035882047,45.3776186,103.09,103.03,42.95946473]
[1770035882746,45.3776186,103.09,103.03,51.70316473]
[1770035882940,42.36299948,103.09,103.03,42.95946473]
[1770035883140,42.36299948,103.09,103.03,45.97408385]
[1770035883550,42.36299948,103.09,103.05,8.7427]
[1770035884348,3.01461912,103.1,103.05,8.7427]
[1770035884847,45.3776186,103.11,103.05,8.7427]
[1770035885045,45.3776186,103.1,103.05,8.7427]
[1770035885350,45.3776186,103.1,103.04,51.70306473]
[1770035885545,3.01461912,103.09,103.04,51.70306473]
[1770035886240,45.3776186,103.09,103.04,51.70306473]
[1770035886948,42.36299948,103.09,103.04,51.70306473]
[1770035887148,45.3776186,103.11,103.05,8.7427]
[1770035888250,45.3776186,103.11,103.05,50.98006844]
[1770035888742,3.01461912,103.1,103.05,50.98006844]
[1770035889347,45.3776186,103.11,103.05,50.98006844]
[1770035890346,3.01461912,103.1,103.05,50.98006844]
[1770035890952,44.25835464,103.1,103.05,50.98006844]
[1770035891652,44.25835464,103.1,103.05,42.23736844]
[1770035892350,3.01461912,103.09,103.03,42.23736844]
[1770035893252,44.25835464,103.1,103.05,8.7426]
[1770035898652,3.01461912,103.13,103.06,42.23736844]
[1770035898852,44.25835464,103.13,103.06,42.23736844]
[1770035899751,44.25835464,103.11,103.04,429.33736844]
[1770035899951,44.25835464,103.1,103.04,429.33736844]
[1770035901450,44.25835464,103.1,103.05,8.7427]
[1770035902556,41.24373552,103.1,103.05,8.7427]
[1770035903857,41.24373552,103.1,103.05,50.98006844]
[1770035905455,41.24373552,103.1,103.06,8.7415]
[1770035913769,41.24373552,103.12,103.07,50.97796844]
[1770035913961,44.25835464,103.12,103.07,50.97796844]
[1770035914657,44.25835464,103.12,103.07,8.7406]
[1770035914864,41.24373552,103.1,103.05,74.46793355]
[1770035915663,41.24373552,103.1,103.06,8.7415]
[1770035916067,41.24373552,103.12,103.06,42.23736844]
[1770035916268,44.25835464,103.12,103.06,42.23736844]
[1770035916966,44.25835464,103.13,103.07,50.97836844]
[1770035917365,3.01461912,103.12,103.07,50.97836844]
[1770035917571,44.25835464,103.12,103.07,50.97836844]
[1770035917769,44.25835464,103.11,103.06,8.7419]
[1770035918768,44.25835464,103.11,103.05,50.97936844]
[1770035919272,44.25835464,103.11,103.06,42.20473484]
[1770035919573,41.24373552,103.11,103.06,42.20473484]
[1770035920072,41.24373552,103.11,103.06,50.94663484]
[1770035920368,44.25835464,103.11,103.06,50.94663484]
[1770035921165,44.25835464,103.11,103.05,8.7427]
[1770035921371,45.60176679,103.1,103.05,8.7427]
[1770035921969,45.60176679,103.1,103.05,50.94743484]
[1770035923576,42.58714767,103.1,103.05,50.94743484]
[1770035924775,45.60176679,103.12,103.06,50.94633484]
[1770035924976,45.60176679,103.12,103.06,42.20473484]
[1770035925276,42.58714767,103.12,103.07,50.94563484]
[1770035926777,3.01461912,103.13,103.07,50.94563484]
[1770035926978,45.60176679,103.13,103.07,50.94563484]
[1770035927883,45.60176679,103.13,103.09,18.10840629]
[1770035928177,45.60176679,103.13,103.08,18.10840629]
[1770035930485,42.58714767,103.13,103.08,18.10840629]
[1770035930683,44.95735849,103.12,103.08,26.84850629]
[1770035932990,41.94273937,103.12,103.09,18.10840629]
[1770035933489,44.95735849,103.12,103.09,18.10840629]
[1770035935794,41.94273937,103.12,103.09,18.10840629]
[1770035936190,41.94273937,103.12,103.08,18.10840629]
[1770035936392,44.95472435,103.12,103.08,18.10840629]
[1770035938693,41.94273937,103.12,103.08,18.10840629]
[1770035939895,41.94273937,103.12,103.08,26.84850629]
[1770035939896,44.95472435,103.12,103.08,26.84850629]
[1770035940194,41.94273937,103.12,103.08,26.84850629]
[1770035940393,41.94273937,103.12,103.09,18.10840629]
[1770035940588,41.94273937,103.12,103.08,26.84850629]
[1770035941090,41.94273937,103.12,103.09,18.10840629]
[1770035942794,44.95472435,103.14,103.09,18.10840629]
[1770035944599,44.95472435,103.12,103.09,18.10840629]
[1770035944802,41.94273937,103.12,103.08,18.10840629]
[1770035945602,41.94273937,103.12,103.08,60.72422866]
[1770035945804,41.94273937,103.12,103.08,69.46432866]
[1770035946005,41.94273937,103.12,103.09,18.10840629]
[1770035948312,41.94273937,103.12,103.09,26.84770629]
[1770035950812,41.94273937,103.12,103.09,18.10840629]
[1770035952411,41.94273937,103.12,103.08,68.21248663]
[1770035952901,41.94273937,103.12,103.09,18.10840629]
[1770035955810,44.95472435,103.12,103.09,18.10840629]
[1770035956007,44.95472435,103.12,103.07,8.7404]
[1770035956008,41.62016707,103.1,103.07,26.84880629]
[1770035956415,44.63215205,103.12,103.07,68.21268663]
[1770035956606,41.62016707,103.12,103.08,8.7402]
[1770035957012,41.62016707,103.12,103.08,26.84860629]
[1770035957413,41.62016707,103.12,103.08,68.21248663]
[1770035958114,41.62016707,103.12,103.08,50.10408034]
[1770035958716,41.62016707,103.14,103.08,50.10408034]
[1770035959016,44.63215205,103.14,103.08,50.10408034]
[1770035962216,44.63215205,103.14,103.09,8.7393]
[1770035966118,3.01198498,103.13,103.09,8.7393]
[1770035966319,41.62016707,103.12,103.08,50.10398034]
[1770035967219,41.62016707,103.12,103.08,8.7401]
[1770035967521,41.62016707,103.12,103.08,50.10398034]
[1770035974822,3.01198498,103.13,103.09,8.7393]
[1770035975026,44.63215205,103.13,103.09,8.7393]
[1770035975423,3.01198498,103.16,103.1,41.36388034]
[1770035975829,3.01198498,103.14,103.08,64.85254545]
[1770035976028,3.01198498,103.14,103.09,8.7393]
[1770035977422,41.62016707,103.13,103.09,8.7393]
[1770035978524,41.62016707,103.13,103.08,50.10408034]
[1770035978730,44.06321893,103.12,103.08,50.10408034]
[1770035980921,44.06321893,103.12,103.04,413.48065009]
[1770035980922,44.06321893,103.12,103.04,41.5612105]
[1770035981121,477.2083,103.15,103.04,41.5612105]
[1770035981122,44.06321893,103.1,103.04,41.5612105]
[1770035981724,44.06321893,103.1,103.05,8.7426]
[1770035981928,44.06321893,103.09,103.04,41.5612105]
[1770035982532,44.06321893,103.07,103.02,41.5612105]
[1770035982738,41.05123395,103.05,103.01,381.5952872]
[1770035982934,44.06321893,103.05,103.01,381.5952872]
[1770035983135,41.05123395,103.05,103.01,8.7461]
[1770035983734,44.06321893,103.05,103.0,41.5612105]
[1770035985340,44.06321893,103.05,103.0,50.3081105]
[1770035986342,3.01198498,103.04,103.0,41.5612105]
[1770035986738,44.06321893,103.05,103.0,41.5612105]
[1770035986937,41.05123395,103.05,103.0,50.3082105]
[1770035987240,44.06321893,103.06,103.0,41.5612105]
[1770035987443,41.05123395,103.06,103.0,44.57319548]
[1770035988143,3.01198498,103.08,103.02,41.5612105]
[1770035988836,47.80100356,103.08,103.02,41.5612105]
[1770035989339,47.80100356,103.08,103.03,50.14264622]
[1770035990045,44.78901858,103.12,103.07,44.4103312]
[1770035990336,47.80100356,103.12,103.05,44.4103312]
[1770035990549,44.78901858,103.1,103.05,53.1530312]
[1770035990733,44.78901858,103.1,103.05,41.39834622]
[1770035990939,44.78901858,103.1,103.05,3.01198498]
[1770035991234,44.78901858,103.1,103.04,3.01198498]
[1770035991441,44.78901858,103.08,103.03,3.01198498]
[1770035991644,44.78901858,103.08,103.01,41.39834622]
[1770035991645,44.78901858,103.08,103.04,3.01198498]
[1770035992144,44.78901858,103.08,103.05,3.01198498]
[1770035992441,44.78901858,103.08,103.04,3.01198498]
[1770035993436,44.78901858,103.1,103.05,3.01198498]
[1770035993640,44.78901858,103.1,103.06,3.01198498]
[1770035993831,44.78901858,103.1,103.05,44.4103312]
[1770035994038,44.78901858,103.1,103.05,3.01198498]
[1770035994235,44.78901858,103.1,103.06,3.01198498]
[1770035994442,44.78901858,103.1,103.05,3.01198498]
[1770035994940,47.80100356,103.1,103.03,3.01198498]
[1770035995246,44.78901858,103.08,103.03,3.01198498]
[1770035995639,47.80100356,103.08,103.02,3.01198498]
[1770035996537,44.78901858,103.08,103.02,3.01492204]
[1770035997044,44.78901858,103.08,103.03,3.01492204]
[1770035997345,53.52931858,103.08,103.03,3.01492204]
[1770035998839,44.78901858,103.08,103.03,3.01492204]
[1770035999546,44.78901858,103.08,103.04,3.01492204]
[1770036000341,44.78901858,103.08,103.01,8.7453]
[1770036000643,44.78901858,103.08,103.0,3.01492204]
[1770036000644,47.80394062,103.07,103.0,3.01492204]
[1770036000836,8.7419,103.06,103.0,3.01492204]
[1770036001033,44.78901858,103.05,103.0,3.01492204]
[1770036001234,44.78901858,103.05,103.01,3.01492204]
[1770036001645,44.78901858,103.05,103.0,3.01492204]
[1770036003547,44.78901858,103.05,103.01,3.01492204]
[1770036004845,44.78901858,103.05,102.99,8.7473]
[1770036005049,44.78901858,103.05,103.0,3.01492204]
[1770036005542,44.78901858,103.05,102.99,11.76222204]
[1770036005939,44.78901858,103.04,102.98,8.7487]
[1770036006138,44.78901858,103.04,102.98,11.76362204]
[1770036006346,44.78901858,103.04,102.98,3.01492204]
[1770036007047,44.78901858,103.04,103.0,3.01492204]
[1770036007246,44.78901858,103.04,103.01,3.01492204]
[1770036008249,42.94479442,103.07,103.01,3.01492204]
[1770036009251,51.68589442,103.07,103.01,3.01492204]
[1770036009555,42.94479442,103.06,103.01,3.01492204]
[1770036010549,42.94479442,103.06,103.0,11.76192204]
[1770036010753,42.94479442,103.05,103.0,11.76192204]
[1770036011246,42.94479442,103.05,102.99,3.01492204]
[1770036011447,42.94479442,103.05,103.01,3.01492204]
[1770036012347,42.94479442,103.05,103.01,11.76092204]
[1770036014057,42.94479442,103.08,103.03,3.01492204]
[1770036014258,42.94479442,103.08,103.04,3.01492204]
[1770036015154,42.94479442,103.08,103.05,3.01492204]
[1770036015353,42.94479442,103.08,103.04,3.01492204]
[1770036015556,42.94479442,103.08,103.04,11.75822204]
[1770036015750,356.24479442,103.12,103.06,3.01492204]
[1770036015949,42.94479442,103.12,103.06,46.53427228]
[1770036016146,42.94479442,103.12,103.06,3.01492204]
[1770036018455,45.95971646,103.12,103.06,3.01492204]
[1770036019152,54.69681646,103.12,103.05,3.01492204]
[1770036019359,45.95971646,103.11,103.04,3.01492204]
[1770036020459,42.94479442,103.1,103.04,11.75842204]
[1770036020758,42.94479442,103.1,103.05,3.01492204]
[1770036022566,42.94479442,103.1,103.05,8.7426]
[1770036023452,45.95971646,103.1,103.05,8.7426]
[1770036023762,42.94479442,103.1,103.05,52.26195024]
[1770036023963,42.94479442,103.1,103.06,8.7416]
[1770036024864,45.95971646,103.12,103.06,52.26095024]
[1770036025059,42.94479442,103.12,103.07,55.27527228]
[1770036025766,42.94479442,103.14,103.08,46.53427228]
[1770036027069,42.94479442,103.14,103.09,46.53427228]
[1770036028463,45.95971646,103.16,103.1,52.25765024]
[1770036028664,42.94479442,103.14,103.1,8.7383]
[1770036031066,3.01492204,103.15,103.1,52.25765024]
[1770036031273,45.95971646,103.16,103.1,52.25765024]
[1770036032373,42.94479442,103.16,103.11,8.7373]
[1770036033372,42.94479442,103.16,103.12,8.7364]
[1770036033681,42.94479442,103.18,103.13,43.51935024]
[1770036033876,3.01492204,103.21,103.14,179.39905024]
[1770036034072,3.01492204,103.22,103.16,8.7334]
[1770036034877,3.01492204,103.21,103.16,8.7334]
[1770036035379,3.01492204,103.2,103.15,43.51935024]
[1770036035874,3.01492204,103.2,103.16,8.7334]
[1770036036378,45.95971646,103.2,103.14,43.51935024]
[1770036036880,208.12479442,103.24,103.16,43.51935024]
[1770036037076,3.01492204,103.24,103.18,43.51935024]
[1770036037272,45.95971646,103.25,103.18,46.53427228]
[1770036038383,45.95971646,103.25,103.19,8.7305]
[1770036038882,42.94479442,103.25,103.19,57.11560551]
[1770036039479,42.94479442,103.25,103.19,54.10068347]
[1770036039783,45.95971646,103.25,103.19,57.11560551]
[1770036039980,45.36802114,103.27,103.2,57.11510551]
[1770036040482,42.3530991,103.27,103.2,54.10018347]
[1770036040881,42.3530991,103.27,103.21,8.7291]
[1770036041178,42.3530991,103.27,103.21,54.09928347]
[1770036041577,42.3530991,103.27,103.21,8.7291]
[1770036041884,42.3530991,103.27,103.19,54.10038347]
[1770036042083,42.3530991,103.25,103.19,45.37018347]
[1770036042685,51.0789991,103.25,103.17,45.37018347]
[1770036043085,42.3530991,103.24,103.17,45.37018347]
[1770036045490,42.3530991,103.24,103.18,54.10178347]
[1770036045895,42.3530991,103.24,103.19,8.7307]
[1770036046090,42.3530991,103.24,103.18,45.37018347]
[1770036046490,42.3530991,103.24,103.17,8.7318]
[1770036046687,42.3530991,103.22,103.12,181.26608347]
[1770036046896,42.3530991,103.2,103.12,45.37018347]
[1770036047293,7.50855405,103.19,103.1,181.29388347]
[1770036047493,42.3530991,103.18,103.1,45.37018347]
[1770036047890,42.3530991,103.16,103.1,45.37018347]
[1770036050005,16.24115405,103.17,103.1,45.37018347]
[1770036050006,41.53366716,103.18,103.1,45.37018347]
[1770036051502,41.53366716,103.18,103.1,54.10848347]
[1770036053101,41.53366716,103.18,103.11,8.7376]
[1770036053804,50.26546716,103.18,103.11,8.7376]
[1770036054105,41.53366716,103.16,103.11,8.7376]
[1770036055502,41.53366716,103.16,103.1,45.37018347]
[1770036055702,41.53366716,103.16,103.08,42.43252441]
[1770036056403,49.06290458,103.16,103.08,42.43252441]
[1770036056804,41.53366716,103.14,103.08,42.43252441]
[1770036058110,49.06290458,103.16,103.09,51.17182441]
[1770036058707,49.06290458,103.16,103.1,51.17082441]
[1770036058908,41.53366716,103.16,103.1,51.17082441]
[1770036060009,41.53366716,103.16,103.11,8.7373]
[1770036060210,41.53366716,103.18,103.12,42.43252441]
[1770036060604,41.53366716,103.18,103.13,42.43252441]
[1770036061012,57.79300458,103.2,103.13,42.43252441]
[1770036061408,41.53366716,103.19,103.13,42.43252441]
[1770036062313,41.53366716,103.19,103.13,51.16802441]
[1770036063710,41.53366716,103.19,103.1,522.772]
[1770036063912,41.53366716,103.19,103.12,8.7368]
[1770036064112,41.53366716,103.17,103.12,8.7368]
[1770036064514,312.36,103.2,103.14,42.43252441]
[1770036064712,41.53366716,103.2,103.14,42.43252441]
[1770036065406,41.53366716,103.2,103.15,8.7342]
[1770036065814,41.53366716,103.2,103.15,42.43252441]
[1770036066020,41.53366716,103.2,103.17,8.7326]
[1770036066207,135.6912,103.29,103.17,178.27252441]
[1770036066208,41.53366716,103.24,103.17,178.27252441]
[1770036066406,41.53366716,103.24,103.18,42.43252441]
[1770036067112,41.53366716,103.24,103.18,51.16392441]
[1770036067418,41.53366716,103.24,103.18,42.43252441]
[1770036068318,41.53366716,103.24,103.19,8.7308]
[1770036068518,44.64488693,103.26,103.19,50.11530477]
[1770036069224,52.17412435,103.26,103.19,50.11530477]
[1770036069611,44.64488693,103.25,103.17,50.11640477]
[1770036069918,44.64488693,103.25,103.18,41.38450477]
[1770036070116,44.64488693,103.25,103.19,50.11530477]
[1770036070914,44.64488693,103.25,103.17,50.11650477]
[1770036072320,53.37088693,103.25,103.17,50.11650477]
[1770036073421,53.37088693,103.25,103.18,8.7317]
[1770036075020,44.64488693,103.23,103.15,41.38450477]
[1770036075320,52.17412435,103.22,103.15,41.38450477]
[1770036075517,52.17412435,103.22,103.16,8.7334]
[1770036076314,44.64488693,103.24,103.18,41.38450477]
[1770036077523,44.64488693,103.24,103.18,50.11620477]
[1770036078419,44.64488693,103.24,103.19,8.7309]
[1770036079320,44.64488693,103.24,103.18,50.11620477]
[1770036080123,60.90082435,103.24,103.18,8.7317]
[1770036080314,44.64488693,103.23,103.18,8.7317]
[1770036080822,44.64488693,103.23,103.16,50.11710477]
[1770036081019,53.37238693,103.23,103.16,41.38450477]
[1770036081219,44.64488693,103.23,103.16,41.38450477]
[1770036081418,44.64488693,103.21,103.14,41.38450477]
[1770036081618,44.64488693,103.21,103.14,177.26180477]
[1770036082422,44.64488693,103.21,103.16,8.7331]
[1770036082620,44.64488693,103.21,103.14,177.26180477]
[1770036083025,53.37408693,103.21,103.15,8.7342]
[1770036083526,53.37408693,103.21,103.14,41.38450477]
[1770036085124,44.64488693,103.19,103.12,177.28070477]
[1770036085319,44.64488693,103.19,103.12,41.38450477]
[1770036085627,53.37588693,103.19,103.12,41.38450477]
[1770036088328,53.37588693,103.19,103.13,8.7359]
[1770036090526,53.37588693,103.19,103.13,50.12040477]
[1770036093224,8.7301,103.2,103.14,50.11960477]
[1770036093432,44.64488693,103.21,103.14,41.38450477]
[1770036095337,53.37498693,103.2,103.14,50.11960477]
[1770036096636,44.64488693,103.2,103.15,50.11860477]
[1770036100337,3.00810561,103.19,103.15,41.38450477]
[1770036100539,3.00810561,103.18,103.14,8.7351]
[1770036102039,3.00810561,103.18,103.14,54.12564835]
[1770036102239,3.00810561,103.19,103.14,54.12564835]
[1770036102440,3.00810561,103.2,103.15,54.12454835]
[1770036102739,3.00810561,103.21,103.15,45.39054835]
[1770036103238,3.00810561,103.21,103.16,54.12394835]
[1770036103432,48.38726345,103.22,103.16,45.39054835]
[1770036104336,3.00810561,103.23,103.17,54.12294835]
[1770036104641,48.38726345,103.24,103.18,45.39054835]
[1770036105038,48.38726345,103.23,103.18,45.39054835]
[1770036105937,3.00810561,103.22,103.17,8.7319]
[1770036106340,45.37915784,103.23,103.17,8.7319]
[1770036106838,45.37915784,103.23,103.16,45.39054835]
[1770036107541,54.10665784,103.23,103.16,54.12394835]
[1770036109043,52.18734362,103.22,103.16,54.12394835]
[1770036109240,52.18734362,103.22,103.16,45.39054835]
[1770036109444,50.97533001,103.22,103.14,50.87031846]
[1770036110144,43.45894362,103.22,103.15,42.13581846]
[1770036110543,43.45894362,103.22,103.16,42.13581846]
[1770036111340,43.45894362,103.22,103.17,8.7325]
[1770036112639,43.45894362,103.22,103.16,42.13581846]
[1770036112835,43.45894362,103.22,103.15,8.7335]
[1770036112836,50.97533001,103.22,103.15,50.86931846]
[1770036114238,43.45894362,103.22,103.16,50.86921846]
[1770036115045,43.45894362,103.22,103.16,42.13581846]
[1770036115245,50.97533001,103.22,103.14,50.87021846]
[1770036115748,52.18824362,103.21,103.14,50.87021846]
[1770036116249,52.18914362,103.2,103.14,50.87021846]
[1770036116748,43.45894362,103.2,103.14,50.87021846]
[1770036116949,43.45894362,103.2,103.15,8.7341]
[1770036119044,43.45894362,103.2,103.15,50.86991846]
[1770036120948,52.18914362,103.2,103.13,50.87101846]
[1770036121143,43.45894362,103.2,103.13,42.13581846]
[1770036121450,43.45894362,103.2,103.14,8.7349]
[1770036121648,43.45894362,103.2,103.13,42.13581846]
[1770036122450,43.45894362,103.2,103.14,42.13581846]
[1770036123052,59.70769304,103.22,103.15,50.86931846]
[1770036123248,59.70769304,103.22,103.15,42.13581846]
[1770036123249,52.18804362,103.22,103.15,42.13581846]
[1770036124056,52.18804362,103.22,103.15,50.87001846]
[1770036125361,52.18854362,103.21,103.15,50.87001846]
[1770036126456,3.00759776,103.2,103.15,50.87001846]
[1770036127059,46.46654138,103.2,103.15,50.87001846]
[1770036127958,43.45894362,103.2,103.15,50.87001846]
[1770036128165,3.00759776,103.21,103.16,51.99324736]
[1770036128563,48.1864801,103.21,103.16,51.99324736]
[1770036128763,3.00759776,103.2,103.16,43.25984736]
[1770036128961,48.1864801,103.2,103.14,51.99414736]
[1770036131562,45.17888234,103.2,103.15,51.99394736]
[1770036132665,56.9148801,103.22,103.16,51.99304736]
[1770036132870,48.1864801,103.2,103.14,43.25984736]
[1770036133069,45.17888234,103.2,103.14,43.25984736]
[1770036133667,48.1864801,103.2,103.14,43.25984736]
[1770036134165,3.00759776,103.21,103.15,8.7335]
[1770036134470,56.9148801,103.22,103.15,43.25984736]
[1770036134670,45.17888234,103.21,103.15,43.25984736]
[1770036135576,48.1864801,103.21,103.15,43.25984736]
[1770036136071,48.1864801,103.21,103.15,51.99394736]
[1770036136272,48.1864801,103.21,103.15,43.25984736]
[1770036137477,48.1864801,103.21,103.16,8.7333]
[1770036138077,48.1864801,103.2,103.15,51.99404736]
[1770036138272,48.1864801,103.21,103.15,51.99404736]
[1770036138468,3.00759776,103.2,103.15,51.99404736]
[1770036138775,48.1864801,103.2,103.15,51.99404736]
[1770036140077,48.1864801,103.2,103.15,43.25984736]
[1770036140277,3.00759776,103.19,103.15,43.25984736]
[1770036140472,48.1864801,103.16,103.11,23.48866511]
[1770036140678,3.00759776,103.15,103.1,43.25984736]
[1770036141076,3.00759776,103.14,103.1,43.25984736]
[1770036141277,48.1864801,103.15,103.1,43.25984736]
[1770036142377,48.1864801,103.15,103.1,51.99834736]
[1770036142571,48.1864801,103.15,103.1,43.25984736]
[1770036143777,3.00759776,103.12,103.09,376.59614249]
[1770036143979,48.1864801,103.13,103.09,376.59614249]
[1770036144778,48.1864801,103.13,103.08,43.25984736]
[1770036144973,3.00759776,103.14,103.08,43.25984736]
[1770036145176,48.1864801,103.14,103.08,43.25984736]
[1770036146181,48.1864801,103.14,103.08,52.00004736]
[1770036147083,3.00759776,103.13,103.08,52.00004736]
[1770036148074,3.00759776,103.14,103.08,52.00004736]
[1770036148283,3.00759776,103.14,103.1,43.25984736]
[1770036148481,3.00759776,103.15,103.1,43.25984736]
[1770036149676,3.00759776,103.14,103.1,43.25984736]
[1770036150588,48.1864801,103.15,103.1,43.25984736]
[1770036150789,48.1864801,103.15,103.1,51.99834736]
[1770036151385,3.00759776,103.16,103.11,51.99744736]
[1770036151582,3.00759776,103.15,103.11,43.25984736]
[1770036152886,48.1864801,103.16,103.11,43.25984736]
[1770036153090,48.1864801,103.16,103.11,51.99754736]
[1770036154083,45.17888234,103.18,103.12,51.99664736]
[1770036154289,3.00759776,103.19,103.13,43.25984736]
[1770036154585,3.00759776,103.2,103.14,43.25984736]
[1770036155392,48.1864801,103.2,103.14,43.25984736]
[1770036155593,48.1864801,103.2,103.14,51.99494736]
[1770036156092,45.17888234,103.2,103.14,55.00254512]
[1770036156593,48.1864801,103.18,103.13,8.736]
[1770036156793,45.17888234,103.18,103.13,8.736]
[1770036158892,45.17888234,103.18,103.12,43.25984736]
[1770036158893,48.1864801,103.18,103.12,43.25984736]
[1770036159192,44.66645955,103.17,103.12,43.25984736]
[1770036159396,41.65886179,103.17,103.12,43.25984736]
[1770036159692,44.66645955,103.17,103.12,43.25984736]
[1770036159888,44.66645955,103.17,103.1,44.50373936]
[1770036160491,53.39905955,103.17,103.1,53.24213936]
[1770036161791,53.39905955,103.17,103.11,50.2335416]
[1770036161792,44.66645955,103.17,103.11,50.2335416]
[1770036162795,41.65886179,103.16,103.11,50.2335416]
[1770036163991,53.39825955,103.18,103.12,50.2327416]
[1770036164394,44.66645955,103.17,103.12,50.2327416]
[1770036164591,44.66645955,103.17,103.11,8.7376]
[1770036165094,44.66645955,103.17,103.11,50.2337416]
[1770036166495,44.66645955,103.17,103.12,50.2329416]
[1770036169293,44.80042403,103.18,103.12,50.2329416]
[1770036171195,44.80042403,103.17,103.12,8.7368]
[1770036171593,44.80042403,103.17,103.12,53.59693785]
[1770036171899,41.79282627,103.17,103.13,8.7359]
[1770036172495,44.80042403,103.17,103.13,8.7359]
[1770036172696,44.80042403,103.17,103.12,53.59683785]
[1770036172898,44.80042403,103.16,103.1,44.86013785]
[1770036174387,53.53382403,103.16,103.1,53.59863785]
[1770036175096,44.80042403,103.15,103.1,8.7385]
[1770036175297,44.80042403,103.15,103.09,53.59943785]
[1770036175298,41.79282627,103.14,103.09,53.59943785]
[1770036176698,44.80042403,103.14,103.09,44.86013785]
[1770036177095,44.80042403,103.14,103.08,8.7401]
[1770036177503,44.80042403,103.13,103.07,53.60113785]
[1770036179901,44.80042403,103.13,103.07,56.60873561]
[1770036180302,41.79282627,103.13,103.08,44.86013785]
[1770036181002,53.53871375,103.15,103.09,44.86013785]
[1770036181496,364.93791375,103.16,103.09,56.61092533]
[1770036181703,53.53791375,103.16,103.1,44.86013785]
[1770036182300,53.53891375,103.15,103.09,8.7392]
[1770036182504,44.80441375,103.14,103.09,8.7392]
[1770036182702,44.80441375,103.14,103.09,53.59933785]
[1770036185600,41.79282627,103.14,103.09,53.59933785]
[1770036186505,44.80441375,103.14,103.09,53.59933785]
[1770036187097,3.01158748,103.15,103.1,53.59833785]
[1770036188209,48.87124804,103.15,103.1,53.59833785]
[1770036188409,3.01158748,103.16,103.11,54.79640648]
[1770036188707,57.60444804,103.17,103.11,54.79640648]
[1770036189411,45.85966056,103.17,103.12,54.79560648]
[1770036189802,48.87124804,103.17,103.12,46.05880648]
[1770036190006,48.87124804,103.16,103.1,46.05880648]
[1770036190609,3.01158748,103.15,103.1,54.79700648]
[1770036190810,48.87124804,103.15,103.1,46.05880648]
[1770036192312,48.87124804,103.15,103.1,54.79710648]
[1770036192513,45.85966056,103.15,103.1,54.79710648]
[1770036192914,48.87124804,103.15,103.1,54.79710648]
[1770036193414,45.85966056,103.15,103.1,54.79710648]
[1770036196915,48.87124804,103.15,103.09,54.79810648]
[1770036197321,11.74528748,103.16,103.09,46.05880648]
[1770036197523,11.74528748,103.16,103.09,49.07039396]
[1770036198313,11.74528748,103.16,103.1,54.79710648]